Cogmind - Beta 17 @@@ ROGUE MODE // 2026.07.18 @ 21:02:09 Player: ThE chow Result: Self-destructed Performance ------------- Evolutions (1) 500 Regions Visited (3) 600 Robots Destroyed (33) 165 Value Destroyed (743) 743 Prototype IDs (2) 40 Alien Tech Used (0) 0 Bonus (0) 0 TOTAL SCORE: 2048 Bonus ------- None Cogmind --------- Core Integrity 271/400 Matter 267/300 Energy 178/250 System Corruption 2% Temperature Cool (0) Movement Treading (160) Location -9/Materials Parts ------- > --- POWER (1) -------- Ion Engine > --- PROPULSION (3) --- Light Treads Improved Treads Improved Treads > --- UTILITY (3) ------ Large Storage Unit > --- WEAPON (2) ------- EM Shotgun Ion Cannon > --- INVENTORY (15) --- Light Treads Seismic Detector Improved Targeting Computer Medium Armor Plating Particle Gun Ion Cannon Mining Laser Peak State ------------ > --- POWER ------------ Light Ion Engine > --- PROPULSION ------- Armored Treads Armored Treads Advanced Treads > --- UTILITY ---------- Small Storage Unit Improved Terrain Scanner Medium Armor Plating > --- WEAPON ----------- Shock Rifle Ion Cannon > --- INVENTORY -------- Improved Treads Improved Treads Seismic Detector Light Armor Plating EM Shotgun Particle Gun Mining Laser [Rating: 23] Favorites ----------- Power Ion Engine Engine Ion Engine Propulsion Light Treads Treads Light Treads Utility Small Storage Unit Device Improved Terrain Scanner Storage Small Storage Unit Protection Light Armor Plating Weapon Medium Laser Energy Gun Medium Laser Energy Cannon Ion Cannon Ballistic Gun Assault Rifle Build | -11 -10 -10 -9 ------- Run | Yrd Mat Min Mat Slots Evolved 2 | . . . 2 Power . | . . . . Propulsion 1 | . . . 1 Utility 1 | . . . 1 Weapon . | . . . . Parts Attached 26 | 6 1 2 17 Power 4 | 1 . . 3 Engine 4 | 1 . . 3 Core . | . . . . Reactor . | . . . . Propulsion 8 | 2 . 2 4 Treads 8 | 2 . 2 4 Leg . | . . . . Wheel . | . . . . Hover . | . . . . Flight . | . . . . Utility 7 | 1 1 . 5 Device 2 | . . . 2 Storage 3 | 1 . . 2 Processor . | . . . . Hackware . | . . . . Protection 2 | . 1 . 1 Artifact . | . . . . Weapon 7 | 2 . . 5 Energy Gun 4 | 1 . . 3 Energy Cannon 2 | . . . 2 Ballistic Gun 1 | 1 . . . Ballistic Cannon . | . . . . Launcher . | . . . . Special Weapon . | . . . . Impact Weapon . | . . . . Slashing Weapon . | . . . . Piercing Weapon . | . . . . Special Melee Weapon . | . . . . Unidentified Prototypes . | . . . . Parts Lost 3 | . . . 3 Power 1 | . . . 1 Propulsion . | . . . . Utility 2 | . . . 2 Weapon . | . . . . Highest Loss Streak 2 | . . . 2 To Critical Strikes . | . . . . Average Backups 6 | 1 5 7 8 Power . | . 1 1 . Propulsion 1 | . 1 2 1 Utility 1 | . 1 1 2 Weapon 2 | . 2 2 3 Tool/Special . | . . . . Unused Backups 12 | . 2 5 5 Power 1 | . . . 1 Propulsion 3 | . . 2 1 Utility 5 | . 1 2 2 Weapon 3 | . 1 1 1 Tool/Special . | . . . . Average Slot Usage (%) 98 | . 97 100 97 Engine 12 | . 14 14 10 Treads 30 | . 28 28 32 Device 4 | . . . 10 Storage 12 | . 14 14 11 Protection 11 | . 11 14 10 Energy Gun 11 | . 14 14 9 Energy Cannon 5 | . . . 12 Ballistic Gun 7 | . 14 14 . Peak Build Rating 23 | 6 8 12 23 Average Rating 12 | 4 6 7 20 On Entrance 6 | . 6 7 12 Avg Prop Armor Cover (%) . | . . . . Naked Turns . | . . . . Heaviest Build 43 | 14 17 17 43 Greatest Support 66 | 40 40 40 66 Greatest Overweight (x) 1 | . . . 1 Average Overweight (x) . | . . . . Largest Inventory Capacity 15 | 8 8 8 15 Average Capacity 8 | 7 8 8 10 Most Carried 12 | 5 8 8 12 Average Carried 6 | 1 5 7 8 Final Capacity 15 | 8 8 8 15 Final Carried 8 | 2 8 8 7 Class Distribution -------------------- 100% | Mutant Dominant Class ---------------- Mutant | -10/Materials Mutant | -10/Mines Mutant | -9/Materials Resources | -11 -10 -10 -9 ----------- Run | Yrd Mat Min Mat Matter Collected 676 | 194 149 20 313 Remotely . | . . . . Salvage Created 1063 | . 255 . 808 Parts 64 | . 19 . 45 Haulers Intercepted 3 | . 1 . 2 Recyclers Shooed 1 | . 1 . . Parts Field Recycled . | . . . . Retrieved Matter . | . . . . Parts Self-Destructed . | . . . . Prevented . | . . . . Parts Restored . | . . . . Kills | -11 -10 -10 -9 ------- Run | Yrd Mat Min Mat Combat Hostiles Destroyed 21 | . 5 . 16 Guns 15 | . 5 . 10 Cannons 4 | . . . 4 AOE 2 | . . . 2 Classes Destroyed 9 | . 6 . 3 Worker 1 | . 1 . . Builder 1 | . . . 1 Hauler 3 | . 1 . 2 Mechanic 1 | . . . 1 Operator 2 | . 1 . 1 Watcher 4 | . 2 . 2 Swarmer 8 | . 3 . 5 Grunt 9 | . 2 . 7 Sentry 4 | . . . 4 Best Kill Streak 3 | . 3 . 3 Combat Bots Only 3 | . 3 . 3 Max Kills in Single Turn 1 | . 1 . 1 Gunslinging . | . . . . Exploded 1 | . . . 1 Melee . | . . . . Uniques/NPCs Destroyed . | . . . . Combat | -11 -10 -10 -9 -------- Run | Yrd Mat Min Mat Hostile Shots Fired 129 | . 14 4 111 Missed 27 | . 5 1 21 Hits 102 | . 9 3 90 Projectile 102 | . 9 3 90 Critical Strikes 2 | . . . 2 Damage Taken 1260 | . 105 37 1118 Core 162 | . 33 . 129 Absorbed by Shields . | . . . . Core Remaining (%) 93 | 100 . 86 . Volleys Fired 78 | . 21 . 57 Largest 2 | . 2 . 2 Hottest 120 | . 70 . 120 Shots Fired 139 | . 42 . 97 Gun 104 | . 42 . 62 Cannon 35 | . . . 35 Launcher . | . . . . Special . | . . . . Kinetic 21 | . 21 . . Thermal 68 | . 21 . 47 Explosive . | . . . . Electromagnetic 50 | . . . 50 Robot Hit Streak 10 | . 9 . 10 Robot Miss Streak 5 | . 3 . 5 Penetration Max . | . . . . Secondary Targets 1 | . 1 . . Max Gunslinging Chain 1 | . 1 . . Shots Hit Robots 95 | . 27 . 68 Core Hits 46 | . 15 . 31 Critical Kills . | . . . . Critical Parts Destroyed 1 | . 1 . . Critical Strikes 7 | . 2 . 5 Burn 2 | . 1 . 1 Destroy 1 | . 1 . . Corrupt 4 | . . . 4 Melee Attacks . | . . . . Impact . | . . . . Slashing . | . . . . Piercing . | . . . . Sneak Attacks . | . . . . Combat Hostiles . | . . . . Follow-up Attacks . | . . . . Damage Inflicted 1820 | . 350 7 1463 Guns 1084 | . 350 . 734 Cannons 584 | . . . 584 Explosions 129 | . . . 129 Melee . | . . . . Ramming 23 | . . 7 16 Kinetic 147 | . 147 . . Thermal 1053 | . 203 . 850 Explosive . | . . . . Electromagnetic 597 | . . . 597 Impact . | . . . . Slashing . | . . . . Piercing . | . . . . Highest Corruption 2 | . 1 1 2 Average Corruption 1 | . 1 1 1 Corruption Purged . | . . . . Corruption Blocked . | . . . . Effects 15 | . 8 2 5 Message Errors 2 | . 1 . 1 Matter Fused 2 | . 1 . 1 Heat Flow Errors 2 | . . . 2 Energy Discharges 5 | . 3 2 . Data Loss (minor) 2 | . 2 . . Data Loss (major) 2 | . 1 . 1 Overload Shots . | . . . . Overflow Damage 37 | . . . 37 Projectiles 37 | . . . 37 Explosions . | . . . . Melee . | . . . . Knockbacks . | . . . . Impact . | . . . . Kinetic . | . . . . Secondary . | . . . . Self-Inflicted Damage 34 | . . . 34 Shots 1 | . . . 1 Rammed 4 | . 1 1 2 Targets Rammed 5 | . 1 1 3 Kicked . | . . . . Crushed 1 | . . . 1 Highest Temperature 649 | . 102 . 649 Average Temperature 143 | . 33 . 178 Received Heat Transfer 402 | . 45 . 357 Effects 21 | . . . 21 Shutdowns 3 | . . . 3 Energy Bleed 2 | . . . 2 Interference 6 | . . . 6 Matter Decay 3 | . . . 3 Short Circuit 3 | . . . 3 Damage (minor) 3 | . . . 3 Damage (major) 1 | . . . 1 Siege Activations . | . . . . Martial Activations . | . . . . Shielding Activations . | . . . . Robots Disrupted . | . . . . Combat Hostiles . | . . . . Robots Corrupted 1 | . . . 1 Combat Hostiles . | . . . . Parts Fried 3 | . . . 3 Impact Corruptions . | . . . . Robots Melted . | . . . . Combat Hostiles . | . . . . Parts Melted 1 | . . . 1 Heat Transferred 2148 | . 666 . 1482 Parts Sabotaged . | . . . . Parts Stolen . | . . . . Parts Stripped . | . . . . Power Chain Reactions 3 | . . . 3 Alert | -11 -10 -10 -9 ------- Run | Yrd Mat Min Mat Maximum Alert Level . | . . . . Low Security (%) 100 | 100 100 100 100 Level 1 . | . . . . Level 2 . | . . . . Level 3 . | . . . . Level 4 . | . . . . Level 5 . | . . . . High Security . | . . . . Max Security . | . . . . Peak Influence 131 | . 62 15 131 Initial . | . . . . Average 25 | . 9 . 51 Influence Increases 672 | . 162 15 495 Destroy 0b10 Robot/C 420 | . 100 . 320 Destroy 0b10 Robot/NC 60 | . 25 . 35 Destroy Leader 124 | . 26 . 98 Successful Hack 11 | . 11 . . Disable Machine 45 | . . 15 30 Destroy Structure 12 | . . . 12 Influence Decreases 568 | . 162 15 391 Time Decay 538 | . 162 15 361 Lost Part 30 | . . . 30 Squads Dispatched 3 | . . 1 2 Investigation 2 | . . 1 1 Extermination . | . . . . Reinforcement 1 | . . . 1 Assault . | . . . . Garrison . | . . . . Intercept . | . . . . Searches Triggered . | . . . . Construction Impeded . | . . . . Haulers Reinforced . | . . . . Active Scanning Responses . | . . . . Cargo Convoy Interrupts . | . . . . Stealth | -11 -10 -10 -9 --------- Run | Yrd Mat Min Mat Distress Signals 3 | . . . 3 Communications Jammed . | . . . . Distress Signals . | . . . . Times Spotted 37 | . 8 4 25 Peak Tracking Total 4 | . 4 4 4 Tactical Retreats . | . . . . Traps | -11 -10 -10 -9 ------- Run | Yrd Mat Min Mat Traps Triggered 1 | . . . 1 Indirectly . | . . . . Trap Hack Attempts . | . . . . Triggered . | . . . . Disarmed . | . . . . Reprogrammed . | . . . . Reused . | . . . . Traps Extracted . | . . . . Installed . | . . . . Triggered . | . . . . Machines | -11 -10 -10 -9 ---------- Run | Yrd Mat Min Mat Machines Disabled 3 | . . 1 2 Max in Single Turn 1 | . . . 1 Machines Repaired . | . . . . Machines Dismantled . | . . . . Machines Sabotaged . | . . . . Overloaded Fab Kills . | . . . . Hacking | -11 -10 -10 -9 --------- Run | Yrd Mat Min Mat Machines Accessed 7 | . 5 1 1 Terminals 5 | . 4 . 1 Fabricators . | . . . . Repair Stations . | . . . . Recycling Units 1 | . 1 . . Scanalyzers . | . . . . Garrison Access . | . . . . Total Hacks 15 | . 12 1 2 Successful 6 | . 5 1 . Failed 9 | . 7 . 2 Catastrophic 2 | . . . 2 Database Lockouts . | . . . . Manual 10 | . 10 . . Terminals 12 | . 10 . 2 Fabricators . | . . . . Repair Stations . | . . . . Recycling Units 2 | . 2 . . Scanalyzers . | . . . . Garrison Access . | . . . . Terminal Hacks 4 | . 3 1 . Robot Analysis 1 | . 1 . . Prototype ID Bank 1 | . 1 . . Open Door 1 | . . 1 . Hauler Manifests 1 | . 1 . . Fabricator Hacks . | . . . . Repair Station Hacks . | . . . . Recycling Unit Hacks 2 | . 2 . . Report Inventory 1 | . 1 . . Retrieve Components 1 | . 1 . . Scanalyzer . | . . . . Garrison Access Hacks . | . . . . Unauthorized Hacks . | . . . . Terminals . | . . . . Fabricators . | . . . . Repair Stations . | . . . . Recycling Units . | . . . . Scanalyzers . | . . . . Garrison Access . | . . . . Data Cores Recovered . | . . . . Used . | . . . . Hacking Detections 3 | . 2 . 1 Full Trace Events 2 | . 1 . 1 Feedback Events 2 | . 1 . 1 Corruption 2 | . 1 . 1 Feedback Blocked . | . . . . Robot Schematics Acquired . | . . . . Robots Built . | . . . . Authchips . | . . . . Time . | . . . . Total Robot Build Rating . | . . . . Part Schematics Acquired . | . . . . Parts Built . | . . . . Authchips . | . . . . Time . | . . . . Total Part Build Rating . | . . . . Part Studies Acquired . | . . . . Parts Repaired . | . . . . Time . | . . . . Parts Recycled . | . . . . Recycled Matter . | . . . . Retrieved Matter . | . . . . Retrieved Components 10 | . 10 . . Parts Scanalyzed . | . . . . Part Schematics Acquired . | . . . . Parts Damaged . | . . . . Bothacking | -11 -10 -10 -9 ------------ Run | Yrd Mat Min Mat Used RIF Installer . | . . . . Robots Hacked . | . . . . Non-combat . | . . . . Combat . | . . . . Robot Hacks Applied . | . . . . Relay Couplers Released . | . . . . Fabnet Peak Effective % . | . . . . Robots Rewired . | . . . . Allies Hacked . | . . . . Hacks Repelled . | . . . . Allies | -11 -10 -10 -9 -------- Run | Yrd Mat Min Mat Total Allies 1 | . . 1 . Largest Group 1 | . . 1 . Highest-Rated Group 31 | . . 31 . Highest-Rated Ally 31 | . . 31 . Total Orders . | . . . . Ally Attacks 13 | . . 13 . Total Damage 124 | . . 124 . Kills 3 | . . 3 . Allies Corrupted . | . . . . Allies Melted . | . . . . Intel | -11 -10 -10 -9 ------- Run | Yrd Mat Min Mat Active Infowar (turns) 981 | . . . 981 Terrain 546 | . . . 546 Seismic 435 | . . . 435 Robot Analysis Total 1 | . 1 . . Derelict Logs Recovered 2 | . . 2 . Drone Launches . | . . . . Drone Recoveries . | . . . . Exploration | -11 -10 -10 -9 ------------- Run | Yrd Mat Min Mat Turns Passed 2611 | 94 1091 316 1110 Spaces Moved 1391 | 62 629 190 510 Core 16 | 16 . . . Treads 1375 | 46 629 190 510 Legs . | . . . . Wheels . | . . . . Hover . | . . . . Flight . | . . . . Fastest Speed 50 | 50 160 160 160 Average Speed 159 | 131 160 161 161 Slowest Speed 250 | 160 160 170 250 Overloaded Moves . | . . . . Propulsion Burnouts . | . . . . Robots Hopped . | . . . . Potential Cave-ins . | . . . . Cave-ins Triggered . | . . . . Exploration Rate (%) 38 | 4 76 36 37 Regions Visited 3 Branch Regions 1 Pre-discovered Areas . | . . . . Known Exits Taken . | . . . . Unknown Exits Taken 3 | 1 1 1 . Scrap Searched . | . . . . Spaces Dug . | . . . . Terrain Destroyed 11 | . . . 11 Melee . | . . . . Projectile 1 | . . . 1 AOE 10 | . . . 10 Terrain Rammed . | . . . . Walls Destroyed . | . . . . Machines Disabled . | . . . . Actions | -11 -10 -10 -9 --------- Run | Yrd Mat Min Mat Total 1655 | 75 672 202 706 Wait 86 | . 10 . 76 Move 1388 | 61 628 189 510 Hop . | . . . . Pick Up 40 | 8 9 5 18 Fast Attach . | . . . . Attach 18 | 6 1 . 11 Detach 6 | . . . 6 Swap 11 | . . 2 9 Drop 23 | . 2 5 16 Fire 78 | . 21 . 57 Melee . | . . . . Ram . | . . . . Kick . | . . . . Crush 5 | . 1 1 3 Escape Stasis . | . . . . Rewire . | . . . . Trap . | . . . . Miscellaneous . | . . . . Route ------- -11/Scrapyard -10/Materials (discovered 3 exits: *Mat x2 / *Min) -10/Mines (discovered 2 exits: *Mat x2) -9/Materials (discovered 2 exits: *Mat / *Sto) History --------- Turn | Location | Event 7 | -11/Scrapyard | Discovered new exit (range 15) 95 | -11/Scrapyard | Entered Materials 305 | -10/Materials | Build established: Mutant 372 | -10/Materials | Discovered new exit (range 13) 639 | -10/Materials | Discovered new exit (range 15) 1120 | -10/Materials | Discovered new exit (range 16) 1186 | -10/Materials | Entered Mines 1187 | -10/Mines | Assembled infested the area 1189 | -10/Mines | Received a Mining Laser from a helpful Derelict 1193 | -10/Mines | Assisted by a Guerilla fighting off Assembled 1225 | -10/Mines | Learned Materials emergency access door positions 1268 | -10/Mines | Discovered new exit (range 8) 1310 | -10/Mines | Learned 2 Materials zone layouts 1390 | -10/Mines | Discovered new exit (range 9) 1445 | -10/Mines | Met a Derelict shopkeep closing up shop 1502 | -10/Mines | Entered Materials 1502 | -9/Materials | Evolved 2 slots: Propulsion x1, Utility x1 1503 | -9/Materials | Identified exit to Materials 1503 | -9/Materials | Identified exit to Storage 2612 | -9/Materials | Self-destructed Last Messages --------------- Treads. 02539_ R-06 Scavenger collects Broken Adv. Treads. 02540_ K-01 Serf collects debris. 02546_ M-13 Machinist repairs R-06 Scavenger. 02547_ K-01 Serf collects debris. 02555_ Med. Armor Plating destroyed. 02559_ K-01 Serf collects debris. 02568_ Imp. Terrain Scanner destroyed. 02568_ K-01 Serf collects debris. 02571_ S-10 Pest destroyed. 02571_ K-01 Serf collects debris. 02598_ Sml. Laser fried. 02598_ Heat Sink fried. 02598_ G-34 Mercenary destroyed. 02599_ K-01 Serf collects debris. 02600_ Acquired 64 matter. 02605_ K-01 Serf collects debris. 02608_ S-10 Pest destroyed. 02611_ K-01 Serf collects debris. Map ----- +----------------------------------------------------+ | !!#???????????????????????????????????????? | | !#???????????????????????????????????????? | | !!#???????????????????????????????????????? | | #####???????????????????????????????????????? | | #???????????????????????????????????????????? | | #### #???????????????????????????????????????????? | | ???# #???????????????????????????????????????????? | | #### #???????????????????????????????????????????? | | # #???????????????? ??????????????????? | | # #?????????????== #?????????????????? | | #%#?????????????=! #?????????????????? | | # #?????????#??# ##????????????????? | | # ############## ####+####?????????? | | #### ?????????? | | ???# g ???#??????? | | ???# """ #??????? | | #### """ """ """ """ """ """ "Y" #??????? | | ## """ """ """ " " """ """ #??????? | | ## """ """ """ " " """ """ #??????? | | ## #??????? | | # #??????? | | # ##?????? | | / % ??? | | # m ??? | | # s######## #####????????? | | ###+######### @#??????# #?# ????????? | | # #?# < #??????# #?# ????????? | | # #?# k#####??# #?# ????????? | | ### ############ !##?## ### ????????? | | ??# #######???##### !#?# ## ????????? | | #?# ##########????# #?# ## ????????? | | ### """ """ # % ##???# !#?# + ????????? | | + """ """ # % % ##????# !### ## ????????? | | # """ """ # #???#?# !##?####### ????????? | | #########+# " ###???#####?????#?###????????? | | % + """"" #??###?#?????#???????????????? | | ###########+#########??#?????????????????????????? | | #?# #?????????#??#??#??????#?????????? | | #?# #????#?#?#??##???????????????????? | | #?# ##??????????????#????????????????? | | #?# #?????#??????????????????????????? | | #####?###########???????????????#????????????????? | | | | | | | | | | | | | | | | | +----------------------------------------------------+ Best States ------------- Heat Dissipation 28 Energy Generation 10 Energy Capacity 250 Matter Stores 300 Matter Capacity 300 Sight Range 16 Terrain Scan Range 16 Terrain Scan Density 10 Armor Coverage 225 Evasion (%) 50 Recoil Reduction 3 Item Schematics ----------------- None Robot Schematics ------------------ None Fabricated ------------ Nothing Repaired ---------- Nothing Studied --------- None Alien Tech Used ----------------- None Achievements -------------- I Survived The Infestation Challenges ------------ None Game ------ Seed MetaBeamJammer Manual? 0 Play Time 00:31:39 Cumulative 9.9 hours Start 2026.07.18 @ 20:31:19 End 2026.07.18 @ 21:02:09 Sessions 1 Manual Loads 0 Difficulty Rogue Special Mode None Game No. 8 Rogue 8 Adventurer 0 Explorer 0 Win Type - Total 0 Types 0/0/0/0/0/0/0/0/0/0 Lore% 0 Gallery% 9 Achievement% 10 Wizard Run 0 Options --------- Layout 1 ASCII 0 Keyboard 1 Movement Numpad Keybinds 0 Fullscreen 1 Font 32/Smallcaps Map View 50x35 Zoom Use 0% Tactical HUD 1 Map Filters NONE Filters NONE Steam 1 RUN: 0584ee0c-1d23-4a55-b26d-7025c8f114f4